[Event "*** SCC Grand Prix: Titled Tuesday Blitz"]
[Site "Chess.com"]
[Date "2020.07.21"]
[Round "5"]
[White "romulocardoso"]
[Black "WonderChampion"]
[Result "1-0"]
[WhiteElo "2136"]
[BlackElo "1977"]
[TimeControl "180+1"]
[EndTime "10:54:02 PDT"]
[Termination "romulocardoso won by checkmate"]

1. e4 {[%clk 0:03:00.9]} 1... c5 {[%clk 0:02:59.5]} 2. Nf3 {[%clk 0:02:57.7]}
2... g6 {[%clk 0:02:58.1]} 3. d4 {[%clk 0:02:56.3]} 3... cxd4 {[%clk 0:02:59]}
4. Nxd4 {[%clk 0:02:56.7]} 4... Nc6 {[%clk 0:02:58.9]} 5. Nc3 {[%clk 0:02:56.3]}
5... Bg7 {[%clk 0:02:53.6]} 6. Be3 {[%clk 0:02:56]} 6... Nf6 {[%clk 0:02:53]} 7.
f3 {[%clk 0:02:55.2]} 7... O-O {[%clk 0:02:49.9]} 8. Qd2 {[%clk 0:02:54.1]} 8...
d5 {[%clk 0:02:44.1]} 9. O-O-O {[%clk 0:02:53.4]} 9... dxe4 {[%clk 0:02:35.5]}
10. Kb1 {[%clk 0:02:53.6]} 10... exf3 {[%clk 0:02:30.6]} 11. Nxc6 {[%clk
0:02:52.5]} 11... Qxd2 {[%clk 0:02:25.2]} 12. Nxe7+ {[%clk 0:02:52.6]} 12... Kh8
{[%clk 0:02:22.9]} 13. Rxd2 {[%clk 0:02:53.5]} 13... Re8 {[%clk 0:02:04.5]} 14.
Ned5 {[%clk 0:02:49.5]} 14... Nxd5 {[%clk 0:01:46.3]} 15. Nxd5 {[%clk
0:02:50.4]} 15... Rd8 {[%clk 0:01:37.7]} 16. Nc7 {[%clk 0:02:42.1]} 16... Rxd2
{[%clk 0:01:32.9]} 17. Bxd2 {[%clk 0:02:43]} 17... Rb8 {[%clk 0:01:32]} 18. gxf3
{[%clk 0:02:42]} 18... Be5 {[%clk 0:01:27.1]} 19. Nb5 {[%clk 0:02:41.2]} 19...
a6 {[%clk 0:01:25.2]} 20. Bc3 {[%clk 0:02:41]} 20... Bxc3 {[%clk 0:01:23]} 21.
Nxc3 {[%clk 0:02:41.9]} 21... Be6 {[%clk 0:01:22.5]} 22. Bd3 {[%clk 0:02:41.2]}
22... b5 {[%clk 0:01:22]} 23. Ne4 {[%clk 0:02:40.1]} 23... b4 {[%clk 0:01:20.8]}
24. Ng5 {[%clk 0:02:39.8]} 24... Bd5 {[%clk 0:01:18.5]} 25. Be4 {[%clk 0:02:40]}
25... Bc4 {[%clk 0:01:17.4]} 26. b3 {[%clk 0:02:39.2]} 26... Be6 {[%clk
0:01:16]} 27. Nxe6 {[%clk 0:02:39]} 27... fxe6 {[%clk 0:01:16.9]} 28. Rd1 {[%clk
0:02:39.1]} 28... Rb6 {[%clk 0:01:15]} 29. Rd8+ {[%clk 0:02:38.2]} 29... Kg7
{[%clk 0:01:15.1]} 30. Rd7+ {[%clk 0:02:16.7]} 30... Kf6 {[%clk 0:00:22.7]} 31.
Rxh7 {[%clk 0:02:15.7]} 31... Rd6 {[%clk 0:00:19]} 32. Rh6 {[%clk 0:02:15.2]}
32... Ke5 {[%clk 0:00:17.3]} 33. Rxg6 {[%clk 0:02:14.7]} 33... Rd1+ {[%clk
0:00:18.2]} 34. Kb2 {[%clk 0:02:14.5]} 34... Rd2 {[%clk 0:00:18.4]} 35. h4
{[%clk 0:02:14.4]} 35... Rh2 {[%clk 0:00:18.3]} 36. Rg5+ {[%clk 0:02:14.5]}
36... Kf4 {[%clk 0:00:17.6]} 37. Ra5 {[%clk 0:02:14.1]} 37... Rxh4 {[%clk
0:00:16.3]} 38. Rxa6 {[%clk 0:02:11.4]} 38... e5 {[%clk 0:00:15.1]} 39. Rb6
{[%clk 0:02:10.7]} 39... Ke3 {[%clk 0:00:14]} 40. Rxb4 {[%clk 0:02:11.3]} 40...
Rf4 {[%clk 0:00:14.9]} 41. a4 {[%clk 0:02:11.4]} 41... Rf6 {[%clk 0:00:13.6]}
42. a5 {[%clk 0:02:11.7]} 42... Ra6 {[%clk 0:00:12.9]} 43. Ra4 {[%clk
0:02:12.3]} 43... Kf4 {[%clk 0:00:10.6]} 44. b4 {[%clk 0:02:12.5]} 44... Ke3
{[%clk 0:00:11.5]} 45. b5 {[%clk 0:02:13]} 45... Ra8 {[%clk 0:00:11.2]} 46. Bxa8
{[%clk 0:02:12.1]} 46... Kf2 {[%clk 0:00:09.7]} 47. b6 {[%clk 0:02:11.9]} 47...
Kg3 {[%clk 0:00:10.6]} 48. b7 {[%clk 0:02:11.9]} 48... Kf2 {[%clk 0:00:11.3]}
49. b8=Q {[%clk 0:02:12]} 49... Ke1 {[%clk 0:00:10.6]} 50. Qxe5+ {[%clk
0:02:12]} 50... Kd1 {[%clk 0:00:11.5]} 51. Rd4# {[%clk 0:02:12.1]} 1-0

[Event "*** SCC Grand Prix: Titled Tuesday Blitz"]
[Site "Chess.com"]
[Date "2020.07.21"]
[Round "5"]
[White "killer311"]
[Black "RestartingChess"]
[Result "1-0"]
[WhiteElo "2392"]
[BlackElo "2513"]
[TimeControl "180+1"]
[EndTime "10:54:03 PDT"]
[Termination "killer311 won by resignation"]

1. d4 {[%clk 0:03:00.9]} 1... Nf6 {[%clk 0:02:59.9]} 2. c4 {[%clk 0:03:01]} 2...
d5 {[%clk 0:02:59.6]} 3. cxd5 {[%clk 0:03:00.4]} 3... Nxd5 {[%clk 0:03:00]} 4.
Nf3 {[%clk 0:03:00.2]} 4... Nb6 {[%clk 0:03:00.9]} 5. Nc3 {[%clk 0:02:58.6]}
5... g6 {[%clk 0:03:01.4]} 6. e4 {[%clk 0:02:57.8]} 6... Bg7 {[%clk 0:03:01.8]}
7. Be3 {[%clk 0:02:58.3]} 7... O-O {[%clk 0:03:02.1]} 8. Be2 {[%clk 0:02:58.7]}
8... Bg4 {[%clk 0:03:02.4]} 9. O-O {[%clk 0:02:58.8]} 9... c6 {[%clk 0:03:01.7]}
10. h3 {[%clk 0:02:58.2]} 10... Bxf3 {[%clk 0:03:01.8]} 11. Bxf3 {[%clk
0:02:59.1]} 11... Nc4 {[%clk 0:03:02.3]} 12. Qb3 {[%clk 0:02:45.6]} 12... Nxe3
{[%clk 0:02:57.2]} 13. fxe3 {[%clk 0:02:46.5]} 13... Qb6 {[%clk 0:02:50.5]} 14.
e5 {[%clk 0:02:39.4]} 14... e6 {[%clk 0:02:39.9]} 15. Ne4 {[%clk 0:02:37.7]}
15... Na6 {[%clk 0:02:35.4]} 16. Qxb6 {[%clk 0:02:26.4]} 16... axb6 {[%clk
0:02:34.7]} 17. a3 {[%clk 0:02:27.3]} 17... Rfd8 {[%clk 0:02:12.9]} 18. Rac1
{[%clk 0:02:21.1]} 18... Nc7 {[%clk 0:02:06.3]} 19. Nd6 {[%clk 0:02:14.9]} 19...
Ra7 {[%clk 0:02:02.8]} 20. Rc2 {[%clk 0:02:02]} 20... Ne8 {[%clk 0:01:40.7]} 21.
Ne4 {[%clk 0:01:51.5]} 21... h6 {[%clk 0:01:32.3]} 22. Kf2 {[%clk 0:01:50.6]}
22... Nc7 {[%clk 0:01:25.5]} 23. Ke2 {[%clk 0:01:48.6]} 23... Nd5 {[%clk
0:01:19.8]} 24. Nd6 {[%clk 0:01:47.8]} 24... Bf8 {[%clk 0:01:19.8]} 25. Nxf7
{[%clk 0:01:42.6]} 25... Nxe3 {[%clk 0:00:51.2]} 26. Nxd8 {[%clk 0:01:04.8]}
26... Nxc2 {[%clk 0:00:51.3]} 27. Kd3 {[%clk 0:01:05]} 27... Nxa3 {[%clk
0:00:45.4]} 28. bxa3 {[%clk 0:01:03]} 28... Rxa3+ {[%clk 0:00:45.1]} 29. Ke4
{[%clk 0:00:59.1]} 29... Ra4 {[%clk 0:00:45.3]} 30. Nxe6 {[%clk 0:00:57.9]}
30... c5 {[%clk 0:00:44.1]} 31. Bd1 {[%clk 0:00:54.4]} 31... Ra8 {[%clk
0:00:39]} 32. Rxf8+ {[%clk 0:00:50.3]} 32... Rxf8 {[%clk 0:00:39.9]} 33. Nxf8
{[%clk 0:00:50.6]} 33... Kxf8 {[%clk 0:00:40.8]} 34. d5 {[%clk 0:00:49.8]} 1-0

[Event "*** SCC Grand Prix: Titled Tuesday Blitz"]
[Site "Chess.com"]
[Date "2020.07.21"]
[Round "5"]
[White "DanielTitichoca"]
[Black "JiiHart"]
[Result "0-1"]
[WhiteElo "2305"]
[BlackElo "2088"]
[TimeControl "180+1"]
[EndTime "10:54:03 PDT"]
[Termination "JiiHart won by resignation"]

1. d4 {[%clk 0:03:00.9]} 1... Nf6 {[%clk 0:02:58.7]} 2. Nf3 {[%clk 0:03:00.6]}
2... e6 {[%clk 0:02:58.2]} 3. Bf4 {[%clk 0:03:01.5]} 3... c5 {[%clk 0:02:56.3]}
4. Nc3 {[%clk 0:03:00.2]} 4... cxd4 {[%clk 0:02:55.4]} 5. Nxd4 {[%clk
0:02:55.6]} 5... a6 {[%clk 0:02:54.7]} 6. e3 {[%clk 0:02:54.2]} 6... d5 {[%clk
0:02:53.9]} 7. Be2 {[%clk 0:02:52.6]} 7... Bd6 {[%clk 0:02:42]} 8. Bxd6 {[%clk
0:02:46.7]} 8... Qxd6 {[%clk 0:02:40.9]} 9. O-O {[%clk 0:02:47.6]} 9... O-O
{[%clk 0:02:39.9]} 10. Bf3 {[%clk 0:02:43]} 10... b5 {[%clk 0:02:36.1]} 11. e4
{[%clk 0:02:40.6]} 11... b4 {[%clk 0:02:33.4]} 12. Na4 {[%clk 0:02:06.5]} 12...
dxe4 {[%clk 0:02:31.2]} 13. Be2 {[%clk 0:02:02.2]} 13... Bd7 {[%clk 0:02:04.6]}
14. c4 {[%clk 0:01:52.2]} 14... e5 {[%clk 0:01:59.7]} 15. c5 {[%clk 0:01:50.6]}
15... Qxd4 {[%clk 0:01:58.2]} 16. Nb6 {[%clk 0:01:50.4]} 16... Ra7 {[%clk
0:01:53.7]} 17. Qb3 {[%clk 0:01:46.2]} 17... Qxc5 {[%clk 0:01:49.2]} 18. Nxd7
{[%clk 0:01:43.5]} 18... Rxd7 {[%clk 0:01:43.7]} 19. Rac1 {[%clk 0:01:44.4]}
19... Qb6 {[%clk 0:01:41.9]} 20. h3 {[%clk 0:01:38.4]} 20... Rfd8 {[%clk
0:01:38.2]} 21. Bc4 {[%clk 0:01:35.8]} 21... Nc6 {[%clk 0:01:34.6]} 22. Qa4
{[%clk 0:01:32.3]} 22... Nd4 {[%clk 0:01:20.6]} 23. Kh1 {[%clk 0:01:17.6]} 23...
a5 {[%clk 0:01:16.1]} 24. Rfd1 {[%clk 0:01:16.6]} 24... h6 {[%clk 0:01:12.2]}
25. Rd2 {[%clk 0:01:10.1]} 25... Nf5 {[%clk 0:00:44.2]} 26. Rdc2 {[%clk
0:00:59.2]} 26... Rd2 {[%clk 0:00:39.9]} 27. Qb3 {[%clk 0:00:58.5]} 27... Qxf2
{[%clk 0:00:37.8]} 28. Bxf7+ {[%clk 0:00:57.8]} 28... Kh7 {[%clk 0:00:31.3]} 29.
Rxd2 {[%clk 0:00:53.8]} 29... Rxd2 {[%clk 0:00:30.5]} 30. Rg1 {[%clk 0:00:54.7]}
0-1

[Event "*** SCC Grand Prix: Titled Tuesday Blitz"]
[Site "Chess.com"]
[Date "2020.07.21"]
[Round "5"]
[White "davidkalashian"]
[Black "ikhasu"]
[Result "1/2-1/2"]
[WhiteElo "2533"]
[BlackElo "2386"]
[TimeControl "180+1"]
[EndTime "10:54:04 PDT"]
[Termination "Game drawn by repetition"]

1. e4 {[%clk 0:02:57.1]} 1... e5 {[%clk 0:02:57.6]} 2. Nf3 {[%clk 0:02:55.7]}
2... Nf6 {[%clk 0:02:57.5]} 3. d4 {[%clk 0:02:54.4]} 3... Nxe4 {[%clk
0:02:53.8]} 4. Bd3 {[%clk 0:02:52.8]} 4... d5 {[%clk 0:02:53.2]} 5. dxe5 {[%clk
0:02:50.1]} 5... Nc5 {[%clk 0:02:51.2]} 6. O-O {[%clk 0:02:47.3]} 6... Nxd3
{[%clk 0:02:50.3]} 7. Qxd3 {[%clk 0:02:46.3]} 7... Be7 {[%clk 0:02:50.4]} 8. c4
{[%clk 0:02:44.5]} 8... dxc4 {[%clk 0:02:49.1]} 9. Qxc4 {[%clk 0:02:43.7]} 9...
O-O {[%clk 0:02:48.7]} 10. Nc3 {[%clk 0:02:43.2]} 10... Be6 {[%clk 0:02:48.8]}
11. Qe4 {[%clk 0:02:39.4]} 11... c6 {[%clk 0:02:47.1]} 12. Rd1 {[%clk
0:02:37.7]} 12... Qc7 {[%clk 0:02:39.2]} 13. Bg5 {[%clk 0:02:33.1]} 13... Na6
{[%clk 0:02:30]} 14. Qh4 {[%clk 0:01:57.8]} 14... Rfe8 {[%clk 0:02:25.6]} 15.
Ne4 {[%clk 0:01:52.3]} 15... h6 {[%clk 0:02:19.7]} 16. Nf6+ {[%clk 0:00:58.9]}
16... Bxf6 {[%clk 0:01:09.3]} 17. Bxf6 {[%clk 0:00:50.5]} 17... gxf6 {[%clk
0:01:03.5]} 18. exf6 {[%clk 0:00:39.6]} 18... Kh7 {[%clk 0:01:02.4]} 19. Qe4+
{[%clk 0:00:26.5]} 19... Kh8 {[%clk 0:00:56.9]} 20. Qh4 {[%clk 0:00:22.2]} 20...
Kh7 {[%clk 0:00:56.7]} 21. Qe4+ {[%clk 0:00:15.3]} 21... Kh8 {[%clk 0:00:56.8]}
22. Qh4 {[%clk 0:00:15.7]} 22... Kh7 {[%clk 0:00:57]} 1/2-1/2

[Event "*** SCC Grand Prix: Titled Tuesday Blitz"]
[Site "Chess.com"]
[Date "2020.07.21"]
[Round "5"]
[White "ajian"]
[Black "Lagmantr"]
[Result "0-1"]
[WhiteElo "2419"]
[BlackElo "2628"]
[TimeControl "180+1"]
[EndTime "10:54:05 PDT"]
[Termination "Lagmantr won by checkmate"]

1. Nf3 {[%clk 0:03:00.9]} 1... Nf6 {[%clk 0:02:57.3]} 2. b3 {[%clk 0:03:01.2]}
2... d6 {[%clk 0:02:56.7]} 3. Bb2 {[%clk 0:03:01.6]} 3... e5 {[%clk 0:02:57.1]}
4. d3 {[%clk 0:02:57.1]} 4... b6 {[%clk 0:02:53]} 5. Nbd2 {[%clk 0:02:56.9]}
5... Bb7 {[%clk 0:02:53.2]} 6. g3 {[%clk 0:02:57]} 6... Nbd7 {[%clk 0:02:52.6]}
7. Bg2 {[%clk 0:02:56.6]} 7... Be7 {[%clk 0:02:52.1]} 8. O-O {[%clk 0:02:56.5]}
8... O-O {[%clk 0:02:51]} 9. c4 {[%clk 0:02:55.7]} 9... a5 {[%clk 0:02:49.9]}
10. a3 {[%clk 0:02:55.4]} 10... h6 {[%clk 0:02:47.5]} 11. b4 {[%clk 0:02:53.3]}
11... Nh7 {[%clk 0:02:16.8]} 12. e4 {[%clk 0:02:24.7]} 12... Ng5 {[%clk
0:02:11.1]} 13. Nxg5 {[%clk 0:02:23.7]} 13... Bxg5 {[%clk 0:02:07.9]} 14. f4
{[%clk 0:02:15.7]} 14... exf4 {[%clk 0:02:04.7]} 15. gxf4 {[%clk 0:02:15.5]}
15... Bf6 {[%clk 0:02:03.2]} 16. e5 {[%clk 0:01:57.3]} 16... Bxg2 {[%clk
0:01:57.1]} 17. exf6 {[%clk 0:01:57.3]} 17... Bxf1 {[%clk 0:01:49.7]} 18. fxg7
{[%clk 0:01:56.9]} 18... Re8 {[%clk 0:01:46.9]} 19. Qh5 {[%clk 0:01:30.4]} 19...
Bxd3 {[%clk 0:01:31.1]} 20. Qxh6 {[%clk 0:01:08.2]} 20... Bh7 {[%clk 0:01:29.7]}
21. Nf3 {[%clk 0:01:06.5]} 21... Re6 {[%clk 0:01:28.5]} 22. Qh3 {[%clk
0:00:49.7]} 22... Rg6+ {[%clk 0:01:26.4]} 23. Kf2 {[%clk 0:00:42.8]} 23... Nf6
{[%clk 0:01:18]} 24. Ng5 {[%clk 0:00:38.1]} 24... Rxg5 {[%clk 0:01:14.9]} 25.
fxg5 {[%clk 0:00:38]} 25... Ne4+ {[%clk 0:01:15.1]} 26. Kg1 {[%clk 0:00:30.8]}
26... Qxg5+ {[%clk 0:01:14.4]} 27. Kf1 {[%clk 0:00:26]} 27... Qf4+ {[%clk
0:01:06.6]} 28. Kg1 {[%clk 0:00:23.5]} 28... Qf2+ {[%clk 0:01:06]} 29. Kh1
{[%clk 0:00:23.5]} 29... Ng3+ {[%clk 0:01:06.1]} 30. hxg3 {[%clk 0:00:18.2]}
30... Be4+ {[%clk 0:01:07]} 31. Qg2 {[%clk 0:00:18.1]} 31... Qxg2# {[%clk
0:01:06]} 0-1

[Event "*** SCC Grand Prix: Titled Tuesday Blitz"]
[Site "Chess.com"]
[Date "2020.07.21"]
[Round "5"]
[White "margarita_2703"]
[Black "Andrei_Belozerov"]
[Result "1-0"]
[WhiteElo "2399"]
[BlackElo "2542"]
[TimeControl "180+1"]
[EndTime "10:54:05 PDT"]
[Termination "margarita_2703 won by resignation"]

1. Nf3 {[%clk 0:03:00.9]} 1... d5 {[%clk 0:02:59.6]} 2. d4 {[%clk 0:02:57.4]}
2... Nf6 {[%clk 0:02:59.1]} 3. c4 {[%clk 0:02:57.5]} 3... c6 {[%clk 0:02:59.1]}
4. Nc3 {[%clk 0:02:57.6]} 4... dxc4 {[%clk 0:02:59.1]} 5. e3 {[%clk 0:02:57]}
5... b5 {[%clk 0:02:58.9]} 6. a4 {[%clk 0:02:56.2]} 6... b4 {[%clk 0:02:59.2]}
7. Na2 {[%clk 0:02:56.4]} 7... e6 {[%clk 0:02:57.1]} 8. Bxc4 {[%clk 0:02:56]}
8... Bb7 {[%clk 0:02:56.3]} 9. O-O {[%clk 0:02:55.5]} 9... Nbd7 {[%clk
0:02:56.1]} 10. Bd2 {[%clk 0:02:54.1]} 10... a5 {[%clk 0:02:55]} 11. Nc1 {[%clk
0:02:53.7]} 11... c5 {[%clk 0:02:54.6]} 12. Nd3 {[%clk 0:02:52.6]} 12... Qb6
{[%clk 0:02:52.4]} 13. Nde5 {[%clk 0:02:50]} 13... Rd8 {[%clk 0:02:45.7]} 14.
Bb5 {[%clk 0:02:48.4]} 14... cxd4 {[%clk 0:02:24.8]} 15. exd4 {[%clk 0:02:43.3]}
15... Be7 {[%clk 0:02:17.9]} 16. Nxd7 {[%clk 0:02:38.1]} 16... Nxd7 {[%clk
0:02:03.5]} 17. Ne5 {[%clk 0:02:36.1]} 17... Bc8 {[%clk 0:01:06.8]} 18. Nc6
{[%clk 0:02:30.9]} 18... Bf6 {[%clk 0:01:01.1]} 19. Nxd8 {[%clk 0:02:28.5]}
19... Qxd8 {[%clk 0:00:59.6]} 20. Rc1 {[%clk 0:02:25.1]} 20... O-O {[%clk
0:00:58.4]} 21. Bf4 {[%clk 0:02:23.3]} 21... Qe7 {[%clk 0:00:19.8]} 22. Qg4
{[%clk 0:02:09.4]} 22... Rd8 {[%clk 0:00:17.7]} 23. Qg3 {[%clk 0:02:02.8]} 23...
Nf8 {[%clk 0:00:15.3]} 24. Rc7 {[%clk 0:01:59.6]} 24... Bd7 {[%clk 0:00:14.6]}
25. Bd6 {[%clk 0:01:54.8]} 25... Qe8 {[%clk 0:00:14.7]} 26. Be5 {[%clk
0:01:52.8]} 26... Ng6 {[%clk 0:00:12.7]} 27. Bxf6 {[%clk 0:01:52.7]} 27... gxf6
{[%clk 0:00:12.7]} 28. h4 {[%clk 0:01:48.2]} 28... h5 {[%clk 0:00:11.4]} 29. Be2
{[%clk 0:01:44.9]} 29... Kg7 {[%clk 0:00:10.4]} 30. Bxh5 {[%clk 0:01:43.7]}
30... Qe7 {[%clk 0:00:06.3]} 31. Rfc1 {[%clk 0:01:39.7]} 31... Rh8 {[%clk
0:00:05.8]} 32. Bxg6 {[%clk 0:01:36.9]} 32... fxg6 {[%clk 0:00:05.9]} 33. Rxd7
{[%clk 0:01:34.2]} 33... Qxd7 {[%clk 0:00:05.8]} 34. Rc7 {[%clk 0:01:32.8]} 1-0

[Event "*** SCC Grand Prix: Titled Tuesday Blitz"]
[Site "Chess.com"]
[Date "2020.07.21"]
[Round "5"]
[White "Stormeman100100"]
[Black "WeAintSurePal"]
[Result "0-1"]
[WhiteElo "2449"]
[BlackElo "2304"]
[TimeControl "180+1"]
[EndTime "10:54:08 PDT"]
[Termination "WeAintSurePal won by resignation"]

1. e4 {[%clk 0:03:00.9]} 1... c6 {[%clk 0:02:59.8]} 2. d4 {[%clk 0:02:54.2]}
2... d5 {[%clk 0:02:57.6]} 3. Nd2 {[%clk 0:02:44.7]} 3... dxe4 {[%clk
0:02:51.2]} 4. Nxe4 {[%clk 0:02:45.6]} 4... Nf6 {[%clk 0:02:51.6]} 5. Nxf6+
{[%clk 0:02:37.4]} 5... exf6 {[%clk 0:02:52.5]} 6. c3 {[%clk 0:02:36.8]} 6...
Bd6 {[%clk 0:02:53]} 7. Bd3 {[%clk 0:02:36.3]} 7... O-O {[%clk 0:02:50.8]} 8.
Qc2 {[%clk 0:02:35.3]} 8... Re8+ {[%clk 0:02:51.7]} 9. Ne2 {[%clk 0:02:35.7]}
9... h5 {[%clk 0:02:52]} 10. Be3 {[%clk 0:02:35.8]} 10... Nd7 {[%clk 0:02:51.4]}
11. h3 {[%clk 0:02:34.1]} 11... Nf8 {[%clk 0:02:48.9]} 12. O-O-O {[%clk
0:02:33.4]} 12... Be6 {[%clk 0:02:48.2]} 13. Kb1 {[%clk 0:02:32.4]} 13... b5
{[%clk 0:02:46.5]} 14. Nf4 {[%clk 0:02:29.6]} 14... Bxf4 {[%clk 0:02:43.4]} 15.
Bxf4 {[%clk 0:02:30.5]} 15... a5 {[%clk 0:02:42.5]} 16. g4 {[%clk 0:02:27.8]}
16... h4 {[%clk 0:02:38]} 17. Rhg1 {[%clk 0:02:17.8]} 17... a4 {[%clk
0:02:30.8]} 18. g5 {[%clk 0:02:16.2]} 18... Qd5 {[%clk 0:02:25.1]} 19. c4 {[%clk
0:02:15.6]} 19... bxc4 {[%clk 0:02:21.8]} 20. Be4 {[%clk 0:02:13.1]} 20... Qb5
{[%clk 0:02:11.9]} 21. gxf6 {[%clk 0:02:10.4]} 21... Ng6 {[%clk 0:02:04.8]} 22.
Be5 {[%clk 0:01:47.2]} 22... c3 {[%clk 0:01:50.8]} 23. Bxg6 {[%clk 0:01:41.3]}
23... fxg6 {[%clk 0:01:43]} 24. f7+ {[%clk 0:00:36.9]} 24... Bxf7 {[%clk
0:01:41.2]} 25. Ka1 {[%clk 0:00:26.7]} 25... cxb2+ {[%clk 0:01:23.2]} 26. Qxb2
{[%clk 0:00:26]} 26... Qd5 {[%clk 0:01:23.4]} 27. Rc1 {[%clk 0:00:21.1]} 27...
a3 {[%clk 0:01:13.2]} 28. Qe2 {[%clk 0:00:20.6]} 28... Rxe5 {[%clk 0:01:06.9]}
29. dxe5 {[%clk 0:00:15.4]} 29... Qd4+ {[%clk 0:01:06.7]} 30. Kb1 {[%clk
0:00:15]} 30... Rb8+ {[%clk 0:01:03.6]} 0-1

[Event "*** SCC Grand Prix: Titled Tuesday Blitz"]
[Site "Chess.com"]
[Date "2020.07.21"]
[Round "5"]
[White "Chopper1905"]
[Black "BlackBoarder"]
[Result "1-0"]
[WhiteElo "2891"]
[BlackElo "2574"]
[TimeControl "180+1"]
[EndTime "10:54:10 PDT"]
[Termination "Chopper1905 won by resignation"]

1. f4 {[%clk 0:03:00.9]} 1... Nf6 {[%clk 0:02:48]} 2. Nf3 {[%clk 0:02:58.8]}
2... g6 {[%clk 0:02:47.9]} 3. g3 {[%clk 0:02:58.4]} 3... Bg7 {[%clk 0:02:48]} 4.
Bg2 {[%clk 0:02:59.1]} 4... O-O {[%clk 0:02:48.3]} 5. O-O {[%clk 0:02:59.8]}
5... d5 {[%clk 0:02:48.7]} 6. d3 {[%clk 0:02:59.8]} 6... c5 {[%clk 0:02:48.8]}
7. c3 {[%clk 0:03:00.2]} 7... Nc6 {[%clk 0:02:44.5]} 8. Na3 {[%clk 0:03:00.5]}
8... Re8 {[%clk 0:02:28.6]} 9. Qc2 {[%clk 0:02:37.6]} 9... Bf5 {[%clk
0:02:10.6]} 10. Nh4 {[%clk 0:02:31.7]} 10... Bg4 {[%clk 0:02:05.5]} 11. e4
{[%clk 0:02:28.4]} 11... e5 {[%clk 0:01:35.9]} 12. f5 {[%clk 0:02:21.7]} 12...
dxe4 {[%clk 0:01:15.9]} 13. dxe4 {[%clk 0:02:20.3]} 13... Nh5 {[%clk 0:01:04.3]}
14. Nc4 {[%clk 0:02:09.9]} 14... Bf6 {[%clk 0:00:44.3]} 15. Ne3 {[%clk 0:02:02]}
15... Bxh4 {[%clk 0:00:40.3]} 16. Nxg4 {[%clk 0:02:01.6]} 16... Bg5 {[%clk
0:00:35]} 17. f6 {[%clk 0:01:59.8]} 17... Bxc1 {[%clk 0:00:22.1]} 18. Raxc1
{[%clk 0:02:00.7]} 18... Qd7 {[%clk 0:00:18]} 19. Bh3 {[%clk 0:01:48.1]} 19...
Kh8 {[%clk 0:00:16.7]} 20. Rcd1 {[%clk 0:01:45.5]} 20... Qc7 {[%clk 0:00:15]}
21. Nh6 {[%clk 0:01:41.2]} 21... Rad8 {[%clk 0:00:12.1]} 22. Qb3 {[%clk
0:01:30.9]} 22... Rf8 {[%clk 0:00:05.8]} 23. Bg4 {[%clk 0:01:24.7]} 23... Rxd1
{[%clk 0:00:03.7]} 24. Bxd1 {[%clk 0:01:25.6]} 24... Nd8 {[%clk 0:00:02.6]} 25.
Bxh5 {[%clk 0:01:21.4]} 25... gxh5 {[%clk 0:00:02.9]} 26. Qd1 {[%clk 0:01:19.9]}
26... Ne6 {[%clk 0:00:02.7]} 27. Qxh5 {[%clk 0:01:20.3]} 27... Qd7 {[%clk
0:00:02.3]} 28. Rd1 {[%clk 0:01:16.7]} 28... Qc7 {[%clk 0:00:01.8]} 29. Qg4
{[%clk 0:01:13.2]} 29... Rg8 {[%clk 0:00:01.6]} 1-0

[Event "*** SCC Grand Prix: Titled Tuesday Blitz"]
[Site "Chess.com"]
[Date "2020.07.21"]
[Round "5"]
[White "Rap_woyska"]
[Black "Oglob71"]
[Result "0-1"]
[WhiteElo "2364"]
[BlackElo "2518"]
[TimeControl "180+1"]
[EndTime "10:54:12 PDT"]
[Termination "Oglob71 won by resignation"]

1. c4 {[%clk 0:03:00.9]} 1... Nf6 {[%clk 0:02:55.1]} 2. Nf3 {[%clk 0:03:01.2]}
2... e6 {[%clk 0:02:55.2]} 3. e3 {[%clk 0:03:01.3]} 3... b6 {[%clk 0:02:55.1]}
4. b3 {[%clk 0:03:02.2]} 4... Bb7 {[%clk 0:02:55.8]} 5. Bb2 {[%clk 0:03:02.9]}
5... Be7 {[%clk 0:02:56.1]} 6. Nc3 {[%clk 0:03:03.8]} 6... O-O {[%clk
0:02:56.6]} 7. d4 {[%clk 0:03:03.1]} 7... d5 {[%clk 0:02:55.4]} 8. Bd3 {[%clk
0:03:02.3]} 8... Nbd7 {[%clk 0:02:55.3]} 9. O-O {[%clk 0:03:02]} 9... c5 {[%clk
0:02:55.5]} 10. cxd5 {[%clk 0:03:00.6]} 10... Nxd5 {[%clk 0:02:52.2]} 11. Ne4
{[%clk 0:02:24.8]} 11... N7f6 {[%clk 0:02:43.5]} 12. Qb1 {[%clk 0:02:18.2]}
12... h6 {[%clk 0:02:34.7]} 13. Rd1 {[%clk 0:02:18]} 13... Nb4 {[%clk
0:02:33.6]} 14. Nxf6+ {[%clk 0:02:15.3]} 14... Bxf6 {[%clk 0:02:33.9]} 15. Bh7+
{[%clk 0:02:15.7]} 15... Kh8 {[%clk 0:02:34.2]} 16. Be4 {[%clk 0:02:16]} 16...
Bxe4 {[%clk 0:02:22]} 17. Qxe4 {[%clk 0:02:16.9]} 17... Qd5 {[%clk 0:02:22.4]}
18. Qxd5 {[%clk 0:02:09.2]} 18... Nxd5 {[%clk 0:02:20.1]} 19. Ne5 {[%clk
0:01:35.9]} 19... Bxe5 {[%clk 0:02:18.3]} 20. dxe5 {[%clk 0:01:36.8]} 20... Rfd8
{[%clk 0:02:18]} 21. Kf1 {[%clk 0:01:35.2]} 21... Nb4 {[%clk 0:02:17.3]} 22. a3
{[%clk 0:01:31.3]} 22... Nc6 {[%clk 0:02:11.8]} 23. Ke2 {[%clk 0:01:30.2]} 23...
Rxd1 {[%clk 0:02:08.6]} 24. Rxd1 {[%clk 0:01:27.9]} 24... Rd8 {[%clk 0:02:09]}
25. Rxd8+ {[%clk 0:01:26]} 25... Nxd8 {[%clk 0:02:09.2]} 26. Kd3 {[%clk
0:01:25.4]} 26... b5 {[%clk 0:02:07.4]} 27. a4 {[%clk 0:01:06.4]} 27... a6
{[%clk 0:02:07.6]} 28. Ba3 {[%clk 0:01:06.9]} 28... Nb7 {[%clk 0:02:07]} 29. f4
{[%clk 0:01:01.2]} 29... Kg8 {[%clk 0:02:06.5]} 30. g4 {[%clk 0:00:55.7]} 30...
Kf8 {[%clk 0:02:05.7]} 31. b4 {[%clk 0:00:45.2]} 31... c4+ {[%clk 0:02:04.3]}
32. Kd4 {[%clk 0:00:45.6]} 32... Ke7 {[%clk 0:02:03.1]} 33. h4 {[%clk
0:00:45.1]} 33... g6 {[%clk 0:02:02.5]} 34. e4 {[%clk 0:00:45.2]} 34... h5
{[%clk 0:01:59.3]} 35. gxh5 {[%clk 0:00:39.3]} 35... gxh5 {[%clk 0:02:00.2]} 36.
f5 {[%clk 0:00:40.2]} 36... Kd7 {[%clk 0:02:00.1]} 37. Bc1 {[%clk 0:00:38.9]}
37... Kc6 {[%clk 0:01:56.7]} 38. Bg5 {[%clk 0:00:35]} 38... a5 {[%clk
0:01:56.8]} 39. axb5+ {[%clk 0:00:21.2]} 39... Kxb5 {[%clk 0:01:56.3]} 40. bxa5
{[%clk 0:00:22.1]} 40... Nxa5 {[%clk 0:01:55.9]} 41. Bc1 {[%clk 0:00:18.3]}
41... Nc6+ {[%clk 0:01:55.4]} 42. Ke3 {[%clk 0:00:17.7]} 42... Nxe5 {[%clk
0:01:54]} 43. Bb2 {[%clk 0:00:16.1]} 43... Nd3 {[%clk 0:01:53.5]} 44. Bc3 {[%clk
0:00:16]} 44... e5 {[%clk 0:01:51.8]} 45. f6 {[%clk 0:00:13.4]} 45... Ka4 {[%clk
0:01:50]} 0-1